Cogmind - Beta 16 @@@ ROGUE MODE // 2025.12.12 @ 18:24:57 Player: H3-MLN Result: Self-destructed Performance ------------- Evolutions (1) 500 Regions Visited (4) 800 Robots Destroyed (73) 365 Value Destroyed (1565) 1565 Prototype IDs (7) 140 Alien Tech Used (0) 0 Bonus (22) 22 TOTAL SCORE: 3392 Bonus ------- High Alert Combat Kills 22 Cogmind --------- Core Integrity 330/400 Matter 241/300 Energy 280/280 System Corruption 0% Temperature Cool (0) Movement Rolling (145) Ox5 Location -9/Mines Parts ------- > --- POWER (1) -------- Heavy Ion Engine > --- PROPULSION (4) --- Light Treads Light Treads Wheel Wheel > --- UTILITY (2) ------ Huge Storage Unit Hardened Light Armor Plating > --- WEAPON (2) ------- Beamcaster Light Cannon > --- INVENTORY (25) --- Light Treads Light Treads Light Treads Improved Flight Unit Improved Flight Unit Improved Flight Unit Improved Flight Unit Improved Flight Unit Improved Flight Unit Medium Storage Unit Large Storage Unit High-capacity Matter Pod (200) High-capacity Matter Pod (164) High-capacity Matter Pod (168) Transport Network Coupler Light Armor Plating Hacking Suite Hacking Suite Improved Trap Extractor (3/6 EMP Trap) Field Laser Improved Assault Rifle Improved Assault Rifle Grenade Launcher Datajack Great Maul Peak State ------------ > --- POWER ------------ Heavy Ion Engine > --- PROPULSION ------- Light Treads Wheel Wheel Improved Flight Unit > --- UTILITY ---------- Huge Storage Unit Hardened Light Armor Plating > --- WEAPON ----------- Beamcaster Light Cannon > --- INVENTORY -------- Heavy Ion Engine Light Treads Light Treads Light Treads Light Treads Improved Flight Unit Improved Flight Unit Improved Flight Unit Medium Storage Unit Large Storage Unit Large Storage Unit High-capacity Matter Pod High-capacity Matter Pod High-capacity Matter Pod Transport Network Coupler Light Armor Plating Hacking Suite Hacking Suite Improved Trap Extractor Improved EM Shotgun Field Laser Grenade Launcher Datajack Great Maul [Rating: 22] Favorites ----------- Power Ion Engine Engine Ion Engine Power Core Nuclear Core Propulsion Light Treads Treads Light Treads Wheel Wheel Flight Unit Improved Flight Unit Utility Large Storage Unit Device Improved Heat Sink Storage Large Storage Unit Protection Light Armor Plating Weapon Assault Rifle Energy Gun Beamcaster Ballistic Gun Assault Rifle Ballistic Cannon Light Cannon Launcher Grenade Launcher Impact Weapon Hammer Special Melee Weapon Datajack Build | -11 -10 -10 -9 -9 ------- Run | Yrd Mat Min Mat Min Slots Evolved 2 | . . . 2 . Power . | . . . . . Propulsion 2 | . . . 2 . Utility . | . . . . . Weapon . | . . . . . Parts Attached 38 | 7 8 5 18 . Power 5 | 1 1 1 2 . Engine 4 | 1 1 . 2 . Core 1 | . . 1 . . Reactor . | . . . . . Propulsion 14 | 2 2 1 9 . Treads 8 | 1 . 1 6 . Leg . | . . . . . Wheel 5 | 1 2 . 2 . Hover . | . . . . . Flight 1 | . . . 1 . Utility 10 | 2 4 1 3 . Device 3 | 1 1 . 1 . Storage 5 | 1 3 . 1 . Processor . | . . . . . Hackware . | . . . . . Protection 2 | . . 1 1 . Artifact . | . . . . . Weapon 9 | 2 1 2 4 . Energy Gun 2 | . . . 2 . Energy Cannon . | . . . . . Ballistic Gun 2 | 2 . . . . Ballistic Cannon 2 | . . 1 1 . Launcher 1 | . . 1 . . Special Weapon . | . . . . . Impact Weapon 1 | . 1 . . . Slashing Weapon . | . . . . . Piercing Weapon . | . . . . . Special Melee Weapon 1 | . . . 1 . Unidentified Prototypes 1 | . . . 1 . Parts Lost 5 | . 2 . 3 . Power . | . . . . . Propulsion 2 | . 1 . 1 . Utility 2 | . 1 . 1 . Weapon 1 | . . . 1 . Highest Loss Streak 2 | . 2 . 2 . To Critical Strikes . | . . . . . Average Backups 13 | 2 10 14 16 . Power . | . 1 . . . Propulsion 4 | 1 3 4 4 . Utility 4 | . 2 5 6 . Weapon 3 | . 2 3 4 . Tool/Special . | . . . . . Unused Backups 23 | . . 1 3 19 Power . | . . . . . Propulsion 8 | . . . 1 7 Utility 10 | . . . 2 8 Weapon 5 | . . 1 . 4 Tool/Special . | . . . . . Average Slot Usage (%) 99 | . 99 99 99 . Engine 9 | . 14 9 7 . Core 2 | . . 4 3 . Treads 17 | . 14 14 22 . Wheel 17 | . 14 14 21 . Device 5 | . 13 1 . . Storage 12 | . 14 14 11 . Protection 6 | . . 12 9 . Energy Gun 2 | . . . 5 . Ballistic Gun 14 | . 25 14 4 . Ballistic Cannon 7 | . . 12 11 . Peak Build Rating 22 | 7 10 11 22 . Average Rating 11 | 5 8 9 16 . On Entrance 9 | . 7 10 11 21 Avg Prop Armor Cover (%) 10 | 12 11 8 12 . Naked Turns . | . . . . . Heaviest Build 101 | 15 90 35 101 . Greatest Support 40 | 10 16 10 40 . Greatest Overweight (x) 10 | 1 8 3 10 . Average Overweight (x) 2 | . 2 2 2 . Largest Inventory Capacity 25 | 8 25 15 25 . Average Capacity 17 | 7 17 15 18 . Most Carried 25 | 4 13 15 25 . Average Carried 13 | 2 10 14 16 . Final Capacity 25 | 8 15 15 25 25 Final Carried 25 | 4 13 15 25 25 Class Distribution -------------------- 73% | Mutant 26% | Scavenger-Mutant Dominant Class ---------------- Mutant | -10/Materials Mutant | -10/Mines Scavenger-Mutant | -9/Materials Scavenger-Mutant | -9/Mines Resources | -11 -10 -10 -9 -9 ----------- Run | Yrd Mat Min Mat Min Matter Collected 2329 | 300 635 437 957 . Remotely . | . . . . . Salvage Created 2198 | 116 701 268 1113 . Parts 137 | 8 41 25 63 . Haulers Intercepted 7 | . 2 . 5 . Recyclers Shooed 5 | . . 3 2 . Parts Field Recycled . | . . . . . Retrieved Matter . | . . . . . Parts Self-Destructed . | . . . . . Prevented . | . . . . . Parts Restored . | . . . . . Kills | -11 -10 -10 -9 -9 ------- Run | Yrd Mat Min Mat Min Combat Hostiles Destroyed 41 | . 11 8 22 . Guns 22 | . 11 1 10 . Cannons 7 | . . 1 6 . AOE 12 | . . 6 6 . Classes Destroyed 10 | 2 7 . 1 . Worker 4 | . 1 1 2 . Builder 2 | . 2 . . . Tunneler 7 | 2 2 1 2 . Hauler 7 | . 2 . 5 . Recycler 7 | 1 1 3 2 . Operator 2 | . 1 . 1 . Watcher 3 | . 1 . 2 . Swarmer 14 | . 3 6 5 . Grunt 21 | . 8 2 11 . Sentry 6 | . . . 6 . Best Kill Streak 10 | 3 4 6 10 . Combat Bots Only 7 | . 3 6 7 . Max Kills in Single Turn 5 | 1 2 3 5 . Gunslinging . | . . . . . Exploded 3 | . . 3 2 . Melee . | . . . . . Uniques/NPCs Destroyed . | . . . . . Combat | -11 -10 -10 -9 -9 -------- Run | Yrd Mat Min Mat Min Hostile Shots Fired 144 | . 59 15 70 . Missed 33 | . 16 3 14 . Hits 111 | . 43 12 56 . Projectile 111 | . 43 12 56 . Damage Taken 1306 | . 436 149 721 . Core 222 | . 97 55 70 . Absorbed by Shields . | . . . . . Regen/Repaired (Parts) 57 | . . . 57 . Core Remaining (%) 69 | 100 . 39 . . Volleys Fired 192 | 5 60 45 82 . Largest 2 | 2 2 2 2 . Hottest 105 | 40 40 50 105 . Shots Fired 361 | 10 120 87 144 . Gun 249 | 10 120 45 74 . Cannon 104 | . . 39 65 . Launcher 8 | . . 3 5 . Special . | . . . . . Kinetic 303 | 10 120 84 89 . Thermal 50 | . . . 50 . Explosive 8 | . . 3 5 . Electromagnetic . | . . . . . Robot Hit Streak 16 | 2 16 15 13 . Robot Miss Streak 7 | 4 5 3 7 . Penetration Max . | . . . . . Secondary Targets 3 | . 3 . . . Max Gunslinging Chain 1 | . 1 . . . Shots Hit Robots 209 | 4 74 50 81 . Core Hits 101 | 4 36 16 45 . Critical Kills . | . . . . . Critical Parts Destroyed 1 | . . 1 . . Critical Strikes 7 | . . 2 5 . Burn 4 | . . . 4 . Destroy 1 | . . 1 . . Blast 2 | . . 1 1 . Melee Attacks 10 | . 10 . . . Impact 10 | . 10 . . . Slashing . | . . . . . Piercing . | . . . . . Sneak Attacks 2 | . 2 . . . Combat Hostiles . | . . . . . Follow-up Attacks . | . . . . . Damage Inflicted 4141 | 53 1080 962 2046 . Guns 2321 | 53 969 378 921 . Cannons 937 | . . 348 589 . Explosions 768 | . . 236 532 . Melee 108 | . 108 . . . Ramming 7 | . 3 . 4 . Kinetic 2555 | 53 969 726 807 . Thermal 703 | . . . 703 . Explosive 768 | . . 236 532 . Electromagnetic . | . . . . . Impact 108 | . 108 . . . Slashing . | . . . . . Piercing . | . . . . . Highest Corruption . | . . . . . Average Corruption . | . . . . . Corruption Purged . | . . . . . Corruption Blocked . | . . . . . Overload Shots . | . . . . . Overflow Damage 57 | . 36 14 7 . Projectiles 14 | . . 14 . . Explosions 7 | . . . 7 . Melee 36 | . 36 . . . Knockbacks 11 | . 1 7 3 . Impact 1 | . 1 . . . Kinetic 10 | . . 7 3 . Secondary . | . . . . . Self-Inflicted Damage 48 | . 1 24 23 . Shots 3 | . . 1 2 . Rammed 2 | . 1 . 1 . Targets Rammed 2 | . 1 . 1 . Kicked . | . . . . . Crushed . | . . . . . Highest Temperature 400 | . 3 13 400 . Average Temperature 81 | . 2 5 106 . Received Heat Transfer 483 | . 162 42 279 . Effects 2 | . . . 2 . Shutdowns 1 | . . . 1 . Matter Decay 1 | . . . 1 . Siege Activations . | . . . . . Martial Activations . | . . . . . Shielding Activations . | . . . . . Robots Disrupted . | . . . . . Combat Hostiles . | . . . . . Robots Corrupted 1 | . 1 . . . Combat Hostiles . | . . . . . Parts Fried 4 | . 4 . . . Impact Corruptions 1 | . 1 . . . Robots Melted . | . . . . . Combat Hostiles . | . . . . . Parts Melted . | . . . . . Heat Transferred 1517 | . . . 1517 . Parts Sabotaged . | . . . . . Parts Stolen . | . . . . . Parts Stripped . | . . . . . Power Chain Reactions . | . . . . . Alert | -11 -10 -10 -9 -9 ------- Run | Yrd Mat Min Mat Min Maximum Alert Level 2 | . . 1 2 . Low Security (%) 79 | 100 100 56 73 . Level 1 19 | . . 43 24 . Level 2 . | . . . 2 . Level 3 . | . . . . . Level 4 . | . . . . . Level 5 . | . . . . . High Security . | . . . . . Max Security . | . . . . . Peak Influence 443 | 10 118 292 443 . Initial 171 | . . 4 56 171 Average 100 | 1 37 155 130 . Influence Increases 1652 | 15 411 409 817 . Destroy 0b10 Robot/C 820 | . 220 160 440 . Destroy 0b10 Robot/NC 160 | 15 50 25 70 . Destroy Leader 190 | . 46 30 114 . Successful Hack 64 | . 43 7 14 . Disable Machine 285 | . 15 150 120 . Destroy Structure 88 | . 7 22 59 . Lose Combat Pursuer 45 | . 30 15 . . Influence Decreases 1481 | 15 398 276 523 269 Entered New Map 368 | . . 9 90 269 Time Decay 1070 | 15 382 267 406 . Lost Part 43 | . 16 . 27 . Squads Dispatched 4 | . 1 1 2 . Investigation 2 | . 1 1 . . Extermination . | . . . . . Reinforcement 2 | . . . 2 . Assault . | . . . . . Garrison . | . . . . . Intercept . | . . . . . Searches Triggered . | . . . . . Construction Impeded . | . . . . . Haulers Reinforced . | . . . . . Active Scanning Responses . | . . . . . Cargo Convoy Interrupts . | . . . . . Stealth | -11 -10 -10 -9 -9 --------- Run | Yrd Mat Min Mat Min Distress Signals 6 | . 2 . 4 . Communications Jammed . | . . . . . Distress Signals . | . . . . . Times Spotted 69 | . 22 9 38 . Peak Tracking Total 7 | . 4 3 7 . Tactical Retreats 3 | . 2 1 . . Traps | -11 -10 -10 -9 -9 ------- Run | Yrd Mat Min Mat Min Traps Triggered . | . . . . . Indirectly . | . . . . . Trap Hack Attempts 80 | . . . 80 . Triggered . | . . . . . Disarmed 2 | . . . 2 . Reprogrammed 3 | . . . 3 . Reused . | . . . . . Traps Extracted 3 | . . . 3 . Installed . | . . . . . Triggered . | . . . . . Most Traps Carried 3 | . . . 3 . Objects Rigged 1 | . . . 1 . Machines | -11 -10 -10 -9 -9 ---------- Run | Yrd Mat Min Mat Min Machines Disabled 20 | . 1 10 9 . Max in Single Turn 2 | . 1 2 2 . Machines Repaired . | . . . . . Machines Dismantled . | . . . . . Machines Sabotaged . | . . . . . Overloaded Fab Kills . | . . . . . Hacking | -11 -10 -10 -9 -9 --------- Run | Yrd Mat Min Mat Min Machines Accessed 17 | . 11 2 4 . Terminals 11 | . 8 1 2 . Fabricators . | . . . . . Repair Stations 2 | . 1 . 1 . Recycling Units 2 | . 2 . . . Scanalyzers 1 | . . . 1 . Garrison Access . | . . . . . Total Hacks 58 | . 34 6 18 . Successful 34 | . 15 3 16 . Failed 23 | . 19 2 2 . Catastrophic 5 | . 5 . . . Database Lockouts 1 | . . 1 . . Manual 37 | . 25 5 7 . Terminals 43 | . 28 5 10 . Fabricators . | . . . . . Repair Stations 4 | . 2 . 2 . Recycling Units 4 | . 4 . . . Scanalyzers 6 | . . . 6 . Garrison Access . | . . . . . Terminal Hacks 17 | . 13 2 2 . Part Schematic 1 | . 1 . . . Robot Schematic 2 | . 1 1 . . Robot Analysis 1 | . 1 . . . Prototype ID Bank 6 | . 6 . . . Open Door 1 | . . 1 . . Locate Traps 3 | . 1 . 2 . Hauler Manifests 1 | . 1 . . . Registered Components 1 | . 1 . . . Zone Layout 1 | . 1 . . . Fabricator Hacks . | . . . . . Repair Station Hacks 2 | . . . 2 . Scan Component 1 | . . . 1 . Repair 1 | . . . 1 . Recycling Unit Hacks 1 | . 1 . . . Retrieve Components 1 | . 1 . . . Scanalyzer 6 | . . . 6 . Insert Component 3 | . . . 3 . Analyze 2 | . . . 2 . Retrieve Study 1 | . . . 1 . Garrison Access Hacks . | . . . . . Unauthorized Hacks 8 | . 1 1 6 . Terminals 8 | . 1 1 6 . Track 1 | . . . 1 . Botnet 2 | . . . 2 . Detonate 1 | . . . 1 . Operators 1 | . 1 . . . Skim 2 | . . . 2 . Sabotage 1 | . . 1 . . Fabricators . | . . . . . Repair Stations . | . . . . . Recycling Units . | . . . . . Scanalyzers . | . . . . . Garrison Access . | . . . . . Data Cores Recovered 1 | . 1 . . . Used . | . . . . . Hacking Detections 15 | . 11 . 4 . Full Trace Events 1 | . 1 . . . Feedback Events . | . . . . . Feedback Blocked . | . . . . . Robot Schematics Acquired 2 | . 1 1 . . Robots Built . | . . . . . Authchips . | . . . . . Time . | . . . . . Total Robot Build Rating . | . . . . . Part Schematics Acquired 3 | . 1 . 2 . Parts Built . | . . . . . Authchips . | . . . . . Time . | . . . . . Total Part Build Rating . | . . . . . Part Studies Acquired 1 | . . . 1 . Parts Repaired 1 | . . . 1 . Time 26 | . . . 26 . Parts Recycled . | . . . . . Recycled Matter . | . . . . . Retrieved Matter . | . . . . . Retrieved Components 10 | . 10 . . . Parts Scanalyzed 2 | . . . 2 . Part Schematics Acquired 2 | . . . 2 . Parts Damaged . | . . . . . Bothacking | -11 -10 -10 -9 -9 ------------ Run | Yrd Mat Min Mat Min Used RIF Installer . | . . . . . Robots Hacked . | . . . . . Non-combat . | . . . . . Combat . | . . . . . Robot Hacks Applied . | . . . . . Relay Couplers Released . | . . . . . Fabnet Peak Effective % . | . . . . . Robots Rewired . | . . . . . Allies Hacked . | . . . . . Hacks Repelled . | . . . . . Allies | -11 -10 -10 -9 -9 -------- Run | Yrd Mat Min Mat Min Total Allies . | . . . . . Largest Group . | . . . . . Highest-Rated Group . | . . . . . Highest-Rated Ally . | . . . . . Total Orders . | . . . . . Ally Attacks . | . . . . . Total Damage . | . . . . . Kills . | . . . . . Allies Corrupted . | . . . . . Allies Melted . | . . . . . Intel | -11 -10 -10 -9 -9 ------- Run | Yrd Mat Min Mat Min Active Infowar (turns) 666 | 6 660 . . . Seismic 666 | 6 660 . . . Robot Analysis Total 1 | . 1 . . . Derelict Logs Recovered 1 | . . 1 . . Drone Launches . | . . . . . Drone Recoveries . | . . . . . Exploration | -11 -10 -10 -9 -9 ------------- Run | Yrd Mat Min Mat Min Turns Passed 3912 | 88 1361 811 1652 . Spaces Moved 1959 | 66 818 528 547 . Core 9 | 9 . . . . Treads 129 | . . . 129 . Legs . | . . . . . Wheels 1821 | 57 818 528 418 . Hover . | . . . . . Flight . | . . . . . Fastest Speed 50 | 50 95 110 95 . Average Speed 128 | 86 126 123 140 . Slowest Speed 240 | 95 200 125 240 . Overloaded Moves . | . . . . . Propulsion Burnouts . | . . . . . Robots Hopped . | . . . . . Potential Cave-ins . | . . . . . Cave-ins Triggered . | . . . . . Exploration Rate (%) 50 | 3 96 95 55 5 Regions Visited 4 Branch Regions 2 Pre-discovered Areas . | . . . . . Known Exits Taken . | . . . . . Unknown Exits Taken 4 | 1 1 1 1 . Scrap Searched 1 | . . 1 . . Spaces Dug 42 | . 6 . 36 . Terrain Destroyed 80 | . 6 26 48 . Melee 6 | . 6 . . . Projectile . | . . . . . AOE 74 | . . 26 48 . Terrain Rammed . | . . . . . Walls Destroyed . | . . . . . Machines Disabled . | . . . . . Actions | -11 -10 -10 -9 -9 --------- Run | Yrd Mat Min Mat Min Total 2970 | 83 1002 601 1284 . Wait 605 | 2 89 8 506 . Move 1955 | 65 817 527 546 . Hop . | . . . . . Pick Up 47 | 4 12 5 26 . Fast Attach 11 | 7 . 2 2 . Attach 8 | . 3 . 5 . Detach 1 | . 1 . . . Swap 33 | . 6 7 20 . Drop 26 | . 3 7 16 . Fire 192 | 5 60 45 82 . Melee 10 | . 10 . . . Ram 1 | . 1 . . . Kick . | . . . . . Crush 1 | . . . 1 . Escape Stasis . | . . . . . Rewire . | . . . . . Trap 80 | . . . 80 . Miscellaneous . | . . . . . Route ------- -11/Scrapyard -10/Materials (discovered 5 exits: *Mat x3 / *Min / [*Sub]) -10/Mines (discovered 2 exits: *Mat x2) -9/Materials (discovered 4 exits: *Mat x2 / [*Min x2]) -9/Mines History --------- Turn | Location | Event 37 | -11/Scrapyard | Discovered new exit (range 15) 89 | -11/Scrapyard | Entered Materials 192 | -10/Materials | Discovered new exit (range 16) 308 | -10/Materials | Build established: Mutant 605 | -10/Materials | Discovered new exit (range 10) 822 | -10/Materials | Discovered new exit (range 9) 991 | -10/Materials | Discovered new exit (range 16) 1387 | -10/Materials | Discovered new exit (range 7) 1450 | -10/Materials | Entered Mines 1479 | -10/Mines | Discovered new exit (range 11) 1631 | -10/Mines | Central database locked down 1714 | -10/Mines | Core integrity fell below 50% 1934 | -10/Mines | Learned 4 Materials zone layouts 1962 | -10/Mines | Met a Derelict who couldn't figure out how to use a Trap Extractor 2002 | -10/Mines | Discovered new exit (range 6) 2261 | -10/Mines | Entered Materials 2261 | -9/Materials | Evolved 2 slots: Propulsion x2 2262 | -9/Materials | Identified exit to Materials 3160 | -9/Materials | Build established: Scavenger-Mutant 3202 | -9/Materials | Discovered new exit (range 11) 3240 | -9/Materials | Repaired Grenade Launcher 3462 | -9/Materials | Discovered new exit (range 16) 3556 | -9/Materials | Destroyed 7 combat bots 3713 | -9/Materials | Discovered exit to Materials (range 13) 3913 | -9/Materials | Entered Mines 3913 | -9/Mines | Self-destructed Last Messages --------------- 03824_ W-16 Scout sends out distress signal. 03829_ Destroyed Flight Unit. 03829_ S-10 Pest destroyed. 03831_ T-07 Excavator destroyed. 03833_ S-10 Pest destroyed. 03839_ The unstable cave ceiling collapses. 03846_ W-16 Scout suffers critical hit (Burn). 03846_ W-16 Scout destroyed. 03865_ Y-45 Defender Lgt. Treads blasted off. 03868_ Y-45 Defender destroyed. 03871_ ALERT: Hostiles spotted, dispatching reinforcements to Terminal M011. 03874_ Acquired 46 matter. 03875_ Y-45 Defender destroyed. 03891_ Acquired 3 matter. 03892_ W-16 Scout sends out distress signal. 03909_ K-01 Serf collects debris. LOCATION=UNKNOWN GOAL=ESCAPE Something is scanning the area. Map ----- +----------------------------------------------------+ | | | | | | | | | | | | | | | | | | | | | | | | | | | | | | | | | | | ???????????????????????????????????? | | ???????????????????????????????????? | | ???????????????????????????????????? | | ???????????????????????????????????? | | ??????####?????????????????????????? | | ?????## #????????????????????????? | | ?????# ##??????????????????????? | | ?????# ##?????????????????????? | | ?????# t @ #?????????????????????? | | ?????# ??????????????????? | | ?????# #?????????????????? | | ????# ##?????????????????? | | ???# t #??????????????????? | | ???# ##??????????????????? | | ???# ###???????????????????? | | ???# ##?????????????????????? | | ???# ##??????????????????????? | | ???# #????????????????????????? | | ??? #?????????????????????????? | | ?? ##??????????????????????????? | | ?? #????????????????????????????? | | ???? ?????????????????????????????? | | ???????????????????????????????????? | | ???????????????????????????????????? | | ???????????????????????????????????? | | ???????????????????????????????????? | | ???????????????????????????????????? | | ???????????????????????????????????? | | ???????????????????????????????????? | | ???????????????????????????????????? | | ???????????????????????????????????? | | ???????????????????????????????????? | | ???????????????????????????????????? | +----------------------------------------------------+ Best States ------------- Heat Dissipation 39 Energy Generation 14 Energy Capacity 280 Matter Stores 326 Matter Capacity 500 Sight Range 16 Terrain Scan Density 10 Armor Coverage 150 Evasion (%) 44 Recoil Reduction 2 Trap Extractor Capacity 6 Item Schematics ----------------- Huge Storage Unit | -10/Materials | Hacked Hacking Suite | -9/Materials | Scanalyzed Imp. Flight Unit | -9/Materials | Scanalyzed Robot Schematics ------------------ M-13 Machinist | -10/Materials | Hacked O-16 Technician | -10/Mines | Hacked Fabricated ------------ Nothing Repaired ---------- Grenade Launcher | 5% | -9/Materials Studied --------- Wheel | -9/Materials | Hacked Alien Tech Used ----------------- None Achievements -------------- None Challenges ------------ None Game ------ Seed PersonalWarpTriangulator Manual? 1 Play Time 00:28:16 Cumulative 1152.5 hours Start 2025.12.12 @ 17:53:55 End 2025.12.12 @ 18:24:57 Sessions 2 Manual Loads 0 Difficulty Rogue Special Mode None Game No. 403 Rogue 398 Adventurer 4 Explorer 1 Win Type - Total 24 Types 13/4/1/2/0/1/0/0/2/1 Lore% 97 Gallery% 96 Achievement% 81 Wizard Run 0 Options --------- Layout 0 ASCII 0 Keyboard 0 Movement Numpad Keybinds 0 Fullscreen 2 Font 18/SmallcapsGlow Map View 76x50 Zoom Use 0% Tactical HUD 1 Map Filters NONE Filters NONE Steam 1 RUN: 01a9f90b-2bcc-48a5-94b8-0e3458476421